bitfinex/quotes_SOLUSD_20240613
["timestamp","ask_amount","ask_price","bid_price","bid_amount"]
[1718289883725,45.0,149.93,149.89,2.4683]
[1718289883927,45.0,149.93,149.88,2.4685]
[1718289884108,2.4679,149.92,149.88,2.4685]
[1718289884522,47.4679,149.93,149.88,2.4685]
[1718289885316,47.4679,149.93,149.89,2.4684]
[1718289885532,45.0,149.93,149.89,2.4684]
[1718289885828,45.0,149.93,149.9,2.4681]
[1718289886014,15.5146,149.94,149.91,2.4679]
[1718289886329,17.9823,149.94,149.87,44.6489]
[1718289886636,15.5146,149.94,149.89,9.8738]
[1718289886813,15.5146,149.94,149.9,2.4681]
[1718289887221,15.5146,149.94,149.91,2.4681]
[1718289888238,15.5146,149.94,149.92,2.4679]
[1718289888452,22.1842,149.98,149.88,0.17]
[1718289888737,45.0,149.97,149.91,2.468]
[1718289888918,4.9346,149.96,149.89,2.4683]
[1718289889246,45.0,149.95,149.87,4.9373]
[1718289889411,49.9351,149.95,149.88,2.4686]
[1718289889614,49.9351,149.95,149.86,22.43]
[1718289889615,0.17,149.94,149.89,2.4684]
[1718289889834,2.4679,149.93,149.88,2.4685]
[1718289890207,2.4679,149.92,149.88,2.4685]
[1718289890516,2.4679,149.92,149.85,22.2214]
[1718289890517,2.4681,149.92,149.87,2.4687]
[1718289891730,2.4681,149.92,149.88,2.4686]
[1718289892112,2.4681,149.91,149.85,12.3453]
[1718289892319,2.468,149.92,149.87,2.4687]
[1718289892719,2.468,149.92,149.88,2.4686]
[1718289893737,47.4678,149.93,149.88,2.4686]
[1718289893933,2.6379,149.92,149.88,2.4686]
[1718289895141,0.17,149.92,149.88,2.4686]
[1718289896721,0.17,149.92,149.89,2.4684]
[1718289897040,45.0,149.93,149.9,2.4681]
[1718289897422,45.0,149.93,149.87,7.4062]
[1718289897423,45.0,149.93,149.89,2.4684]
[1718289898138,47.4678,149.93,149.89,2.4684]
[1718289898315,2.638,149.92,149.87,2.4687]
[1718289898517,2.638,149.92,149.88,2.4685]
[1718289899053,0.17,149.92,149.88,2.4685]
[1718289899732,45.0,149.93,149.83,22.43]
[1718289900038,45.0,149.93,149.88,2.4685]
[1718289900251,2.4678,149.93,149.89,2.4684]
[1718289900617,12.3359,149.97,149.9,2.4682]
[1718289900832,2.4673,149.96,149.89,4.9369]
[1718289901034,2.4674,149.95,149.91,2.468]
[1718289901240,4.9354,149.94,149.86,22.43]
[1718289901545,100.0,149.96,149.89,2.4683]
[1718289901546,12.3368,149.96,149.89,2.4683]
[1718289901717,2.4677,149.94,149.89,2.4683]
[1718289901913,2.4677,149.94,149.9,2.4682]
[1718289902137,45.51,149.95,149.88,9.8745]
[1718289902339,47.6375,149.95,149.91,2.4681]
[1718289902621,2.4672,149.97,149.92,2.4679]
[1718289902824,24.8212,149.98,149.94,2.4676]
[1718289903142,22.1842,149.98,149.95,2.4673]
[1718289903316,22.1842,149.98,149.96,2.4673]
[1718289903519,22.1842,149.98,149.95,2.4673]
[1718289903737,364.8327,150.02,149.95,4.9349]
[1718289903738,284.1307,150.02,149.95,4.9349]
[1718289903935,281.6643,150.02,149.98,2.4669]
[1718289904145,281.6643,150.02,149.99,2.4668]
[1718289904349,275.4806,150.02,149.96,9.8692]
[1718289904522,259.9,150.02,150.0,2.4665]
[1718289904733,9.874,150.04,150.02,2.4663]
[1718289905030,9.874,150.04,150.03,2.4661]
[1718289905359,9.874,150.04,150.03,7.3984]
[1718289905521,9.874,150.04,150.03,2.4661]
[1718289906124,9.874,150.04,150.03,7.3984]
[1718289906320,9.874,150.04,150.03,2.4661]
[1718289906740,9.874,150.04,150.03,7.3984]
[1718289907266,9.874,150.04,150.03,24.6615]
[1718289907425,9.874,150.04,150.03,2.4661]
[1718289908051,259.9,150.1,150.03,2.466]
[1718289908052,2.4652,150.09,150.03,2.466]
[1718289908419,259.9,150.1,150.02,4.9326]
[1718289908630,45.0,150.09,150.05,2.4658]
[1718289909466,100.34,150.08,149.96,6.1104]
[1718289909623,0.34,150.07,150.01,2.4664]
[1718289909822,45.0,150.07,149.97,22.43]
[1718289910026,45.0,150.07,150.03,2.466]
[1718289910253,45.0,150.07,150.0,22.43]
[1718289910254,2.4656,150.06,150.0,22.43]
[1718289910421,45.0,150.07,149.98,22.43]
[1718289910627,2.4659,150.05,149.96,4.9346]
[1718289910932,2.6361,150.04,149.98,2.4668]
[1718289911135,100.17,150.04,149.95,22.43]
[1718289911343,2.4667,150.0,149.94,2.4675]
[1718289911537,0.17,150.01,149.92,22.43]
[1718289911538,2.4668,149.99,149.93,2.4677]
[1718289911849,0.17,150.0,149.96,2.4672]
[1718289912050,0.34,150.0,149.95,2.4674]
[1718289912234,0.17,150.0,149.96,2.4673]
[1718289912929,0.17,150.0,149.95,2.4674]
[1718289913128,45.34,150.01,149.94,7.4028]
[1718289913331,45.0,150.01,149.98,2.4669]
[1718289913652,22.6405,150.02,149.98,2.4669]
[1718289913850,22.6405,150.02,149.97,2.467]
[1718289914561,2.4667,150.0,149.92,22.43]
[1718289914739,2.4668,149.99,149.94,2.4675]
[1718289914940,2.4669,149.99,149.93,2.4677]
[1718289915256,2.467,149.98,149.93,2.4677]
[1718289915446,17.6069,150.0,149.88,16.4157]
[1718289915762,2.467,149.98,149.92,2.4679]
[1718289916128,45.0,149.98,149.9,17.2779]
[1718289916333,45.0,149.98,149.93,2.4676]
[1718289916552,45.0,149.98,149.94,2.4676]
[1718289917147,45.0,149.98,149.93,2.4677]
[1718289917457,0.34,149.97,149.89,24.8983]
[1718289917755,17.9506,149.97,149.86,22.43]
[1718289917995,2.4677,149.94,149.88,2.4685]
[1718289918252,2.4677,149.94,149.86,22.43]
[1718289918253,2.4677,149.94,149.89,2.4684]
[1718289918634,2.4675,149.95,149.89,2.4684]
[1718289918843,2.4675,149.95,149.89,2.4683]
[1718289919032,2.4675,149.95,149.9,2.4682]
[1718289919233,45.0,149.96,149.91,2.468]
[1718289919454,0.17,149.95,149.91,2.468]
[1718289919651,0.17,149.95,149.92,2.4679]
[1718289919864,0.17,149.95,149.91,2.468]
[1718289920064,45.0,149.96,149.86,22.43]
[1718289920245,45.0,149.96,149.92,2.4679]
[1718289920751,45.0,149.96,149.91,2.468]
[1718289920953,47.4673,149.96,149.91,2.468]
[1718289921150,2.4675,149.95,149.89,24.8983]
[1718289921359,47.4674,149.96,149.9,2.4682]
[1718289921565,0.17,149.95,149.89,22.43]
[1718289921972,0.17,149.95,149.9,2.4681]
[1718289922265,2.4677,149.94,149.88,2.4685]
[1718289922465,0.17,149.95,149.86,22.43]
[1718289922466,2.4675,149.95,149.89,2.4684]
[1718289922777,0.17,149.94,149.9,2.4682]
[1718289923064,0.17,149.94,149.89,2.4684]
[1718289923571,0.17,149.94,149.9,2.4682]
[1718289923870,0.17,149.94,149.89,2.4683]
[1718289924273,0.17,149.94,149.9,2.4683]
[1718289924445,0.17,149.94,149.89,2.4683]
[1718289924777,2.6377,149.94,149.89,2.4683]
[1718289925169,0.17,149.94,149.9,2.4682]
[1718289925370,0.17,149.94,149.89,2.4683]
[1718289925747,0.17,149.94,149.9,2.4683]
[1718289925957,2.4673,149.96,149.91,2.468]
[1718289926154,0.17,149.95,149.91,2.468]
[1718289926361,262.3666,150.01,149.95,2.4673]
[1718289926568,262.3665,150.01,149.95,2.4674]
[1718289926868,2.4669,149.99,149.93,2.4676]
[1718289927051,2.467,149.98,149.93,2.4676]
[1718289927458,2.4668,149.99,149.93,2.4677]
[1718289927755,2.467,149.98,149.93,2.4677]
[1718289927952,0.17,149.99,149.92,27.3657]
[1718289928156,2.4668,149.99,149.94,2.4675]
[1718289928366,45.34,150.0,149.93,4.9355]
[1718289928559,45.34,150.0,149.96,2.4672]
[1718289928746,45.17,150.0,149.96,2.4672]
[1718289928947,47.6367,150.0,149.95,2.4674]
[1718289929375,45.17,150.0,149.92,27.3657]
[1718289929547,0.34,149.99,149.93,2.4677]
[1718289929747,2.637,149.98,149.93,2.4677]
[1718289929968,0.17,149.98,149.94,2.4675]
[1718289930348,45.0,150.0,149.93,7.4033]
[1718289930549,25.1069,150.02,149.97,2.467]
[1718289930759,22.6405,150.02,149.94,12.3379]
[1718289930967,25.1069,150.02,149.97,2.467]
[1718289931158,22.6405,150.02,149.98,2.4668]
[1718289931768,22.6405,150.02,149.99,2.4667]
[1718289931973,22.6405,150.02,149.95,7.4024]
[1718289931974,16.3679,150.02,150.0,2.4665]
[1718289932279,8.9179,150.06,150.01,2.4664]
[1718289932280,24.7036,150.06,150.01,2.4664]
[1718289932784,22.2379,150.06,149.99,17.2674]
[1718289932949,24.7035,150.06,150.01,2.4664]
[1718289933148,22.2379,150.06,150.0,9.8662]
[1718289933361,22.2379,150.06,150.01,4.9328]
[1718289933569,22.2379,150.06,150.03,2.466]
[1718289933570,15.7858,150.06,150.03,2.466]
[1718289933758,4.9314,150.06,149.96,4.9345]
[1718289933968,2.4657,150.06,149.98,4.9339]
[1718289934168,2.4658,150.05,149.98,4.9339]
[1718289934557,2.4661,150.04,149.98,2.4669]
[1718289934759,2.4661,150.04,149.94,22.43]
[1718289934760,16.6166,150.03,149.94,22.43]
[1718289934994,16.6166,150.03,149.97,9.8685]
[1718289935299,6.2898,150.06,150.02,2.4663]
[1718289935455,6.2898,150.06,149.97,27.3641]
[1718289935456,0.17,150.05,149.97,27.3641]
[1718289935658,8.7554,150.06,150.01,2.4663]
[1718289935953,2.4658,150.05,149.97,27.3641]
[1718289936153,6.6298,150.06,150.0,2.4666]
[1718289936354,8.7555,150.06,149.98,4.9339]
[1718289936566,8.7555,150.06,150.01,2.4664]
[1718289937062,8.7554,150.06,150.01,2.4664]
[1718289938279,8.7554,150.06,150.0,2.4665]
[1718289938774,8.7554,150.06,150.01,2.4664]
[1718289939169,6.2898,150.06,149.99,9.8672]
[1718289939681,6.2898,150.06,150.01,2.4663]
[1718289939977,15.6475,150.07,150.04,2.4659]
[1718289940187,15.6475,150.07,150.0,32.2965]
[1718289940355,15.6475,150.07,150.04,2.4659]
[1718289940561,15.6475,150.07,150.05,2.4658]
[1718289940973,15.6475,150.07,150.04,2.4659]
[1718289942190,18.113,150.07,150.02,2.4662]
[1718289942373,15.6475,150.07,150.0,22.43]
[1718289942572,15.6475,150.07,150.04,2.4659]
[1718289942773,15.6475,150.07,150.0,32.296]
[1718289942968,15.6475,150.07,150.03,2.466]
[1718289943253,18.113,150.07,150.02,2.4663]
[1718289943679,15.6475,150.07,150.03,2.4661]
[1718289944256,15.6475,150.07,150.05,2.4658]
[1718289944453,8.577,150.1,150.04,2.4659]
[1718289944674,6.1119,150.1,150.03,2.466]
[1718289944889,47.6352,150.09,150.04,2.4659]
[1718289945086,45.0,150.09,150.02,4.9325]
[1718289945276,8.5769,150.1,150.05,2.4657]
[1718289945493,122.283934,150.11,150.04,9.864]
[1718289945783,122.283934,150.11,150.08,2.4652]
[1718289946960,122.283934,150.11,150.07,2.4654]
[1718289947160,106.681034,150.11,150.07,4.931]
[1718289947465,106.681034,150.11,150.1,2.465]
[1718289947797,106.681034,150.11,150.09,2.465]
[1718289947959,106.681034,150.11,150.08,2.4652]
[1718289948686,106.681034,150.11,150.1,2.465]
[1718289949071,106.681034,150.11,150.1,7.395]
[1718289949263,106.681034,150.11,150.1,14.79]
[1718289949457,106.681034,150.11,150.1,7.395]
[1718289949678,106.681034,150.11,150.1,24.65]
[1718289950170,77.314025,150.11,150.1,90.33]
[1718289950374,16.5074,150.2,150.16,2.4639]
[1718289950777,2.4632,150.21,150.16,2.4639]
[1718289950995,2.463,150.22,150.17,2.4638]
[1718289951275,8.7849,150.24,150.19,2.4634]
[1718289951460,15.8806,150.26,150.18,17.2455]
[1718289951669,18.343,150.26,150.21,2.4631]
[1718289952069,15.8806,150.26,150.19,2.4634]
[1718289952279,18.3431,150.26,150.18,4.9273]
[1718289952488,18.3431,150.26,150.21,2.4631]
[1718289952699,0.8073953,150.27,150.26,2.4623]
[1718289953183,0.8073953,150.27,150.24,2.4626]
[1718289953394,0.8073953,150.27,150.19,9.8541]
[1718289953586,0.8073953,150.27,150.2,42.43]
[1718289953968,0.8073953,150.27,150.23,2.4628]
[1718289954169,0.8073953,150.27,150.21,4.9263]
[1718289954586,0.8073953,150.27,150.24,2.4626]
[1718289954778,0.8073953,150.27,150.23,2.4628]
[1718289954981,0.8073953,150.27,150.22,2.463]
[1718289955172,0.8073953,150.27,150.26,2.4623]
[1718289955874,0.8073953,150.27,150.21,4.9261]
[1718289956070,0.8073953,150.27,150.22,5.096]
[1718289956270,0.8073953,150.27,150.24,2.4626]
[1718289956880,0.8073953,150.27,150.22,20.0]
[1718289956881,0.8073953,150.27,150.22,2.4629]
[1718289957282,0.8073953,150.27,150.23,2.4628]
[1718289957883,0.8073953,150.27,150.22,2.4629]
[1718289958279,3.2695953,150.27,150.2,22.4632]
[1718289958478,17.4634,150.26,150.19,2.4634]
[1718289958701,15.001,150.26,150.17,4.9275]
[1718289958873,0.8073953,150.27,150.24,2.4626]
[1718289959491,0.8073953,150.27,150.26,2.4623]
[1718289959687,0.8073953,150.27,150.22,27.356]
[1718289960102,0.8073953,150.27,150.22,22.43]
[1718289960279,0.8073953,150.27,150.22,24.893]
[1718289960485,0.8073953,150.27,150.22,24.8929]
[1718289960694,0.8073953,150.27,150.22,22.43]
[1718289961000,0.8073953,150.27,150.22,24.8929]
[1718289961295,0.8073953,150.27,150.22,22.43]
[1718289961804,0.8073953,150.27,150.24,2.4626]
[1718289961995,0.8073953,150.27,150.25,2.4625]
[1718289962167,0.8073953,150.27,150.24,2.4627]
[1718289962372,0.8073953,150.27,150.22,22.43]
[1718289962598,0.8073953,150.27,150.21,0.34]
[1718289962899,0.8073953,150.27,150.1,100.0]
[1718289962900,11.1867,150.26,150.16,15.001]
[1718289963070,11.1867,150.26,150.15,22.43]
[1718289963270,45.51,150.25,150.17,2.4637]
[1718289963694,18.1689,150.22,150.12,17.6371]
[1718289963897,2.4633,150.21,150.14,2.4643]
[1718289964211,15.7058,150.22,150.12,28.8804]
[1718289964378,15.7058,150.22,150.13,4.9289]
[1718289964689,15.7058,150.22,150.15,2.4641]
[1718289964897,15.7058,150.22,150.13,2.4644]
[1718289965100,2.4636,150.19,150.12,2.4646]
[1718289965404,8.8562,150.17,150.11,2.4647]
[1718289965709,2.464,150.16,150.1,2.4649]
[1718289966268,8.8562,150.17,150.11,2.4648]
[1718289966505,6.3923,150.17,150.11,2.4648]
[1718289966670,6.3923,150.17,150.07,4.9309]
[1718289966873,2.4641,150.16,150.1,2.465]
[1718289967100,2.4641,150.16,150.07,4.9309]
[1718289967101,6.3923,150.17,150.07,9.8618]
[1718289967297,6.3923,150.17,150.09,4.9303]
[1718289967503,6.517,150.21,150.11,9.8591]
[1718289967705,6.347,150.21,150.12,9.8581]
[1718289967872,6.347,150.21,150.12,0.17]
[1718289968078,15.7058,150.22,150.18,2.4635]
[1718289968299,15.7058,150.22,150.17,4.9275]
[1718289968481,15.7058,150.22,150.16,0.17]
[1718289968684,15.7058,150.22,150.17,2.4637]
[1718289969074,15.7058,150.22,150.14,0.17]
[1718289969274,15.7058,150.22,150.14,20.34]
[1718289969479,2.4633,150.21,150.14,20.0]
[1718289969790,2.4633,150.21,150.15,2.4641]
[1718289970180,15.7058,150.22,150.13,5.0988]
[1718289970385,18.1688,150.22,150.16,2.4639]
[1718289970790,15.7058,150.22,150.12,20.0]
[1718289971100,15.7058,150.22,150.13,2.4644]
[1718289971101,39.17439943,150.21,150.13,2.4644]
[1718289971501,2.4636,150.19,150.13,2.4644]
[1718289972076,41.46769943,150.21,150.15,2.4641]
[1718289972406,15.7058,150.22,150.18,2.4636]
[1718289972589,15.7058,150.22,150.17,2.4638]
[1718289972910,15.7058,150.22,150.18,2.4636]
[1718289973294,18.1688,150.22,150.16,2.4639]
[1718289973602,15.7058,150.22,150.17,2.4638]
[1718289974185,18.1689,150.22,150.16,2.4639]
[1718289974397,2.4632,150.21,150.16,2.4639]
[1718289974597,2.4632,150.21,150.15,2.4641]
[1718289974913,18.1689,150.22,150.16,2.4639]
[1718289975116,2.4632,150.21,150.14,20.0]
[1718289975316,2.4634,150.2,150.11,22.1824]
[1718289975520,2.4634,150.2,150.14,2.4642]
[1718289975701,2.4632,150.21,150.15,2.4641]
[1718289976406,2.4635,150.19,150.14,2.4643]
[1718289976590,2.4634,150.2,150.14,2.4643]
[1718289976786,2.464,150.17,150.08,6.6294]
[1718289976986,4.9272,150.19,150.08,6.6294]
[1718289976987,8.7527,150.16,150.1,2.4649]
[1718289977198,2.4642,150.15,150.09,2.4651]
[1718289977417,6.2887,150.16,150.11,2.4647]
[1718289977613,6.2887,150.16,150.12,2.4646]
[1718289978091,6.2887,150.16,150.13,2.4645]
[1718289978290,6.2887,150.16,150.11,2.4647]
[1718289979220,2.4636,150.19,150.13,2.4644]
[1718289979709,2.4636,150.19,150.14,2.4643]
[1718289979903,6.1666,150.21,150.09,4.9301]
[1718289980094,6.1666,150.21,150.08,7.3956]
[1718289980095,2.4641,150.16,150.08,4.9306]
[1718289980290,4.9272,150.19,150.11,2.4647]
[1718289980521,2.4641,150.16,150.1,2.4649]
[1718289980689,2.4639,150.17,150.08,7.3959]
[1718289980886,2.4639,150.17,150.12,2.4646]
[1718289981521,2.464,150.16,150.11,2.4647]
[1718289982594,18.9331,150.14,150.09,2.465]
[1718289983393,16.4688,150.14,150.09,2.465]
[1718289983792,16.4688,150.14,150.07,4.9308]
[1718289983999,16.4688,150.14,150.1,2.4649]
[1718289984304,16.4688,150.14,150.09,2.4651]
[1718289984687,16.4688,150.14,150.1,2.4649]
[1718289985422,16.4688,150.14,150.11,2.4648]
[1718289986093,16.4688,150.14,150.1,2.4649]
[1718289986391,16.4688,150.14,150.07,20.17]
[1718289986392,16.4688,150.14,150.07,24.9309]
[1718289986810,2.4646,150.13,150.07,20.0]
[1718289987013,18.9332,150.14,150.09,2.4651]
[1718289987526,18.9332,150.14,150.06,58.3982]
[1718289987527,16.4688,150.14,150.1,2.4649]
[1718289987822,16.4688,150.14,150.09,2.4651]
[1718289988025,16.4688,150.14,150.1,2.4649]
[1718289988317,16.4688,150.14,150.08,12.3266]
[1718289988702,122.1725,150.19,150.13,2.4645]
[1718289988703,15.0604,150.19,150.13,2.4645]
[1718289989022,15.0604,150.19,150.14,2.4643]
[1718289989398,17.5239,150.19,150.13,2.4644]
[1718289989616,2.464,150.16,150.09,45.17]
[1718289989803,17.524,150.19,150.11,4.9296]
[1718289990006,17.524,150.19,150.11,12.324]
[1718289990195,17.524,150.19,150.13,2.4644]
[1718289990703,2.4637,150.18,150.11,4.9296]
[1718289991420,17.524,150.19,150.13,2.4644]
[1718289991728,17.524,150.19,150.11,4.9296]
[1718289991729,2.4638,150.17,150.12,2.4646]
[1718289992019,2.4639,150.17,150.12,2.4646]
[1718289992325,17.2465,150.18,150.1,25.56]
[1718289992518,2.4647,150.12,150.07,28.0254]
[1718289992730,2.4646,150.13,150.08,2.4652]
[1718289993734,6.0389,150.14,150.06,4.9312]
[1718289993920,6.0389,150.14,150.06,24.9312]
[1718289994117,2.4646,150.13,150.08,2.4652]
[1718289994319,6.0389,150.14,150.11,2.4647]
[1718289994622,6.0389,150.14,150.09,22.1858]
[1718289994825,6.0389,150.14,150.11,2.4647]
[1718289995515,6.0389,150.14,150.1,2.4649]
[1718289996741,8.5032,150.14,150.09,2.465]
[1718289997423,8.5032,150.14,150.05,4.9314]
[1718289997424,16.4101,150.13,150.05,4.9314]
[1718289997601,16.4101,150.13,150.09,2.4651]
[1718289998114,16.4101,150.13,150.1,2.4648]
[1718289998523,16.4101,150.13,150.09,2.4651]
[1718289998939,16.4101,150.13,150.1,2.465]
[1718289999403,16.4101,150.13,150.06,4.9311]
[1718289999723,16.4101,150.13,150.06,24.9311]
[1718289999928,18.8746,150.13,150.08,2.4652]
[1718290000316,16.4101,150.13,150.09,2.4651]
[1718290000625,2.465,150.1,150.05,2.4657]
[1718290000926,2.4649,150.11,150.06,2.4656]
[1718290001100,4.9294,150.12,150.07,2.4654]
[1718290001101,2.4647,150.12,150.07,2.4654]
[1718290001501,2.4649,150.11,150.06,2.4656]
[1718290001730,2.4649,150.11,150.04,4.9319]
[1718290001731,2.465,150.1,150.05,2.4657]
[1718290002109,16.4101,150.13,150.04,7.3979]
[1718290002308,2.4649,150.11,150.06,2.4656]
[1718290002636,2.4649,150.11,150.07,2.4655]
[1718290002801,21.3392,150.13,150.07,2.4655]
[1718290003003,2.4647,150.12,150.07,2.4655]
[1718290003307,2.4648,150.11,150.06,2.4655]
[1718290003729,2.4647,150.12,150.07,2.4655]
[1718290004898,16.4101,150.13,150.08,2.4653]
[1718290005104,16.4101,150.13,150.05,7.3974]
[1718290005105,16.4101,150.13,150.1,2.4649]
[1718290005908,16.4101,150.13,150.09,2.465]
[1718290007330,18.8746,150.13,150.09,2.465]
[1718290008908,16.4101,150.13,150.09,2.465]
[1718290009430,16.4101,150.13,150.07,4.9309]
[1718290009737,2.4648,150.11,150.07,2.4654]
[1718290010315,21.3391,150.13,150.04,17.4316]
[1718290010316,2.465,150.1,150.06,2.4656]
[1718290010520,28.7328,150.13,150.03,30.4921]
[1718290010521,17.2531,150.12,150.03,30.4921]
[1718290010707,2.465,150.1,150.06,2.4656]
[1718290010908,4.9298,150.11,150.05,2.4658]
[1718290011129,2.4651,150.1,150.05,2.4658]
[1718290011326,2.4651,150.1,150.06,2.4656]
[1718290011729,2.4651,150.1,150.05,2.4657]
[1718290011910,2.4651,150.1,150.06,2.4656]
[1718290012717,18.8747,150.13,150.05,7.397]
[1718290012940,16.4101,150.13,150.09,2.4651]
[1718290013744,18.8746,150.13,150.08,2.4652]
[1718290014116,16.4101,150.13,150.07,12.3274]
[1718290014435,18.8746,150.13,150.07,4.931]
[1718290014623,18.8746,150.13,150.08,2.4652]
[1718290015813,18.8746,150.13,150.07,4.931]
[1718290015814,18.8746,150.13,150.09,2.4651]
[1718290016447,18.8746,150.13,150.08,2.4652]
[1718290016623,16.4101,150.13,150.09,2.4651]
[1718290016821,16.4101,150.13,150.1,2.4649]
[1718290017221,16.4101,150.13,150.09,2.465]
[1718290017421,16.4101,150.13,150.11,2.4647]
[1718290017847,16.4101,150.13,150.09,2.465]
[1718290018537,16.4101,150.13,150.08,2.4652]
[1718290018738,16.4101,150.13,150.09,2.4651]
[1718290018947,18.8746,150.13,150.09,2.4651]
[1718290019120,18.8746,150.13,150.08,2.4652]
[1718290019326,16.4101,150.13,150.09,2.4651]
[1718290020121,18.8746,150.13,150.09,2.4651]
[1718290020321,16.4101,150.13,150.09,2.4651]
[1718290020537,16.4101,150.13,150.1,2.4649]
[1718290021528,18.8746,150.13,150.09,2.465]
[1718290021847,18.8746,150.13,150.08,2.4652]
[1718290023932,2.465,150.1,150.04,0.17]
[1718290024141,4.9297,150.11,150.05,2.4657]
[1718290024326,2.4652,150.09,150.02,14.7976]
[1718290024653,17.2533,150.12,150.06,2.4656]
[1718290024654,2.4651,150.1,150.06,2.4656]
[1718290024950,2.465,150.1,150.04,4.9319]
[1718290025131,2.4654,150.08,150.03,2.466]
[1718290025449,4.93,150.1,149.96,6.5171]
[1718290025450,4.9304,150.09,150.02,2.4662]
[1718290025655,2.4659,150.05,150.0,2.4665]
[1718290026163,2.4657,150.06,150.01,2.4664]
[1718290026657,2.4659,150.05,150.0,2.4665]
[1718290026825,2.4659,150.05,149.94,4.9351]
[1718290026826,2.4663,150.02,149.94,4.9351]
[1718290027021,4.9318,150.05,149.92,4.9358]
[1718290027022,0.34,150.03,149.92,4.9358]
[1718290027256,7.3998,150.01,149.92,2.4679]
[1718290027434,2.467,149.98,149.93,2.4678]
[1718290027751,18.808,150.0,149.94,2.4676]
[1718290028065,16.3413,150.0,149.95,2.4673]
[1718290028463,16.3413,150.0,149.95,2.4674]
[1718290028644,16.3413,150.0,149.93,4.9355]
[1718290028964,16.3413,150.0,149.95,2.4674]
[1718290029125,18.8079,150.0,149.95,2.4674]
[1718290029452,18.8079,150.0,149.94,2.4675]
[1718290029453,18.808,150.0,149.94,2.4675]
[1718290030371,2.4668,149.99,149.93,2.4677]
[1718290030657,2.4668,149.99,149.94,2.4676]
[1718290030863,16.3413,150.0,149.95,2.4673]
[1718290031033,16.3413,150.0,149.92,25.56]
[1718290031455,21.4427,150.04,149.96,9.869]
[1718290031635,21.4427,150.04,149.98,12.3348]
[1718290031828,15.2117,150.04,150.02,2.4663]
[1718290032156,15.2117,150.04,150.03,2.4661]
[1718290032329,8.6386,150.08,150.04,2.4659]
[1718290032330,21.5618,150.08,150.04,2.4659]
[1718290033240,21.5618,150.08,150.02,2.4662]
[1718290033547,2.4655,150.07,150.02,2.4662]
[1718290033739,2.4656,150.06,150.01,2.4664]
[1718290033939,2.4655,150.07,150.02,2.4663]
[1718290034143,24.0272,150.08,150.02,2.4663]
[1718290034457,21.5618,150.08,150.05,2.4657]
[1718290034635,24.0272,150.08,150.03,2.4661]
[1718290034842,21.5618,150.08,150.0,0.17]
[1718290035041,4.931,150.07,150.0,0.68]
[1718290035229,2.4657,150.06,150.01,2.4664]
[1718290035437,2.4657,150.06,150.02,2.4663]
[1718290035955,2.4658,150.05,150.01,2.4664]
[1718290036160,2.4659,150.05,150.0,2.4666]
[1718290036466,18.1997,150.01,149.96,2.4673]
[1718290036639,2.4666,150.0,149.95,2.4673]
[1718290036830,2.4666,150.0,149.93,4.9355]
[1718290036831,2.4668,149.99,149.94,2.4675]
[1718290037251,2.4668,149.99,149.93,2.4677]